[Event "BM10, BM12, BM14, BM16 ir BM18 èempionat"]
[Site "Vilnius"]
[Date "2021.06.06"]
[Round "8.10"]
[White "Andrasunaite, Rusne"]
[Black "Morkunaite, Adrijana"]
[Result "1-0"]
[WhiteElo "1310"]
[BlackElo "1209"]
[PlyCount "71"]
[EventDate "2021.??.??"]
[TimeControl "90+30"]
[WhiteClock "0:40:58"]
[BlackClock "0:38:21"]

1. e4 {[%emt 0:00:00]} e5 {[%emt 0:00:06]} 2. Nf3 {[%emt 0:00:06]} Nc6 {[%emt
0:00:07]} 3. d4 {[%emt 0:00:04]} exd4 {[%emt 0:00:08]} 4. Nxd4 {[%emt 0:00:08]}
g6 {[%emt 0:00:12]} 5. Be3 {[%emt 0:01:37]} Bg7 {[%emt 0:00:24]} 6. c3 {[%emt
0:00:12]} Nf6 {[%emt 0:00:29]} 7. Nd2 {[%emt 0:01:04]} d6 {[%emt 0:01:19]} 8.
Bc4 {[%emt 0:00:16]} O-O {[%emt 0:00:23]} 9. O-O {[%emt 0:00:12]} Re8 {[%emt 0:
01:08]} 10. Qc2 {[%emt 0:02:47]} Qe7 {[%emt 0:02:44]} 11. Bg5 {[%emt 0:03:43]}
h6 {[%emt 0:02:03]} 12. Bh4 {[%emt 0:00:10]} g5 {[%emt 0:01:38]} 13. Bg3 {
[%emt 0:00:05]} Nh5 {[%emt 0:03:12]} 14. Nf5 {[%emt 0:02:59]} Bxf5 {[%emt 0:02:
25]} 15. exf5 {[%emt 0:00:06]} Kh8 {[%emt 0:03:13]} 16. Qd1 {[%emt 0:07:39]}
Nf6 {[%emt 0:02:41]} 17. h4 {[%emt 0:02:17]} gxh4 {[%emt 0:03:37]} 18. Bxh4 {
[%emt 0:00:09]} Qd7 {[%emt 0:00:58]} 19. Bxf6 {[%emt 0:06:57]} Bxf6 {[%emt 0:
01:06]} 20. Qh5 {[%emt 0:00:09]} Kg7 {[%emt 0:02:02]} 21. Nf3 {[%emt 0:03:59]}
Rh8 {[%emt 0:03:49]} 22. Rfe1 {[%emt 0:04:21]} Na5 {[%emt 0:03:06]} 23. Be6 {
[%emt 0:07:34]} Qe7 {[%emt 0:04:12]} 24. Bd5 {[%emt 0:01:45]} Qd7 {[%emt 0:02:
24]} 25. Re6 {[%emt 0:11:09]} c6 {[%emt 0:08:27]} 26. Qg4+ {[%emt 0:00:17]} Kf8
{[%emt 0:01:06]} 27. Rxf6 {[%emt 0:00:33]} cxd5 {[%emt 0:02:05]} 28. Nh4 {
[%emt 0:00:32]} Rg8 {[%emt 0:03:40]} 29. Qh5 {[%emt 0:00:12]} Ke8 {[%emt 0:03:
13]} 30. Qxh6 {[%emt 0:01:31]} Nc4 {[%emt 0:01:36]} 31. Re1+ {[%emt 0:00:26]}
Kd8 {[%emt 0:00:26]} 32. b3 {[%emt 0:00:07]} Kc8 {[%emt 0:00:43]} 33. bxc4 {
[%emt 0:00:07]} b6 {[%emt 0:00:59]} 34. Rxd6 {[%emt 0:00:20]} Qa4 {[%emt 0:01:
14]} 35. Re7 {[%emt 0:03:51]} Qd1+ {[%emt 0:02:45]} 36. Kh2 {[%emt 0:00:05]}
1-0

[Event "BM10, BM12, BM14, BM16 ir BM18 èempionat"]
[Site "Vilnius"]
[Date "2021.06.06"]
[Round "8.11"]
[White "Dudnikas, Motiejus"]
[Black "Pidluznij, Gleb"]
[Result "0-1"]
[WhiteElo "1323"]
[BlackElo "2016"]
[PlyCount "66"]
[EventDate "2021.??.??"]
[TimeControl "90+30"]
[WhiteClock "0:01:42"]
[BlackClock "0:08:02"]

1. d4 {[%emt 0:00:01]} d6 {[%emt 0:00:14]} 2. Nc3 {[%emt 0:00:32]} e5 {[%emt 0:
02:23]} 3. e3 {[%emt 0:06:56]} Nd7 {[%emt 0:04:21]} 4. Bd3 {[%emt 0:02:11]} g6
{[%emt 0:01:26]} 5. Nf3 {[%emt 0:02:21]} Bg7 {[%emt 0:00:24]} 6. Bc4 {[%emt 0:
13:50]} h6 {[%emt 0:03:15]} 7. h3 {[%emt 0:04:09]} Ne7 {[%emt 0:01:05]} 8. Qe2
{[%emt 0:03:45]} O-O {[%emt 0:02:09]} 9. Bd2 {[%emt 0:02:23]} Kh7 {[%emt 0:01:
59]} 10. h4 {[%emt 0:02:52]} c6 {[%emt 0:20:01]} 11. dxe5 {[%emt 0:13:42]} Nxe5
{[%emt 0:01:19]} 12. Nxe5 {[%emt 0:00:33]} Bxe5 {[%emt 0:04:11]} 13. h5 {[%emt
0:12:01]} g5 {[%emt 0:10:45]} 14. f4 {[%emt 0:06:49]} gxf4 {[%emt 0:07:21]} 15.
exf4 {[%emt 0:00:19]} Bg7 {[%emt 0:02:37]} 16. g4 {[%emt 0:04:12]} f5 {[%emt 0:
07:51]} 17. g5 {[%emt 0:08:04]} d5 {[%emt 0:00:31]} 18. Bd3 {[%emt 0:03:04]} d4
{[%emt 0:00:42]} 19. Nd1 {[%emt 0:01:34]} Nd5 {[%emt 0:03:09]} 20. Qg2 {[%emt
0:02:19]} Qe7+ {[%emt 0:01:42]} 21. Kf2 {[%emt 0:00:41]} Qd6 {[%emt 0:01:15]}
22. Kf3 {[%emt 0:02:23]} c5 {[%emt 0:02:39]} 23. Rg1 {[%emt 0:03:31]} Bd7 {
[%emt 0:04:04]} 24. Qh3 {[%emt 0:01:24]} Bc6 {[%emt 0:05:26]} 25. Bxf5+ {[%emt
0:02:17]} Kh8 {[%emt 0:01:07]} 26. Kg3 {[%emt 0:01:12]} Be5 {[%emt 0:02:09]}
27. Rf1 {[%emt 0:00:22]} Bxf4+ {[%emt 0:01:32]} 28. Bxf4 {[%emt 0:00:25]} Nxf4
{[%emt 0:00:04]} 29. Qg4 {[%emt 0:00:42]} Ne6+ {[%emt 0:01:44]} 30. Kh3 {[%emt
0:00:06]} Nxg5+ {[%emt 0:00:06]} 31. Kh4 {[%emt 0:00:33]} Qh2+ {[%emt 0:00:16]}
32. Qh3 {[%emt 0:00:06]} Nxh3 {[%emt 0:00:33]} 33. Bxh3 {[%emt 0:00:08]} Rxf1 {
[%emt 0:00:36]} 0-1

[Event "BM10, BM12, BM14, BM16 ir BM18 èempionat"]
[Site "Vilnius"]
[Date "2021.06.06"]
[Round "8.12"]
[White "Rudzkis, Vilius"]
[Black "Milius, Ignas"]
[Result "1/2-1/2"]
[WhiteElo "1811"]
[BlackElo "1331"]
[PlyCount "40"]
[EventDate "2021.??.??"]
[TimeControl "90+30"]
[WhiteClock "0:48:05"]
[BlackClock "0:35:57"]

1. d4 {[%emt 0:00:56]} Nf6 {[%emt 0:00:46]} 2. c4 {[%emt 0:00:29]} e6 {[%emt 0:
00:32]} 3. Nc3 {[%emt 0:00:18]} Bb4 {[%emt 0:00:30]} 4. e3 {[%emt 0:04:00]} O-O
{[%emt 0:02:49]} 5. Nf3 {[%emt 0:02:18]} b6 {[%emt 0:02:22]} 6. Bd2 {[%emt 0:
01:33]} d5 {[%emt 0:01:49]} 7. Be2 {[%emt 0:00:23]} c5 {[%emt 0:01:13]} 8. a3 {
[%emt 0:01:53]} Bxc3 {[%emt 0:00:12]} 9. Bxc3 {[%emt 0:00:06]} Bb7 {[%emt 0:01:
48]} 10. O-O {[%emt 0:01:10]} Ne4 {[%emt 0:03:24]} 11. Rc1 {[%emt 0:02:14]} Nd7
{[%emt 0:07:07]} 12. b3 {[%emt 0:13:08]} Nxc3 {[%emt 0:03:48]} 13. Rxc3 {[%emt
0:00:23]} Rc8 {[%emt 0:00:49]} 14. Qc2 {[%emt 0:05:15]} Nf6 {[%emt 0:07:25]}
15. Qb2 {[%emt 0:05:22]} dxc4 {[%emt 0:05:59]} 16. Rxc4 {[%emt 0:02:38]} cxd4 {
[%emt 0:04:10]} 17. Rxd4 {[%emt 0:01:54]} Qe7 {[%emt 0:02:25]} 18. Ne5 {[%emt
0:06:32]} Rfd8 {[%emt 0:05:07]} 19. Rfd1 {[%emt 0:01:01]} Rxd4 {[%emt 0:03:00]}
20. Rxd4 {[%emt 0:00:49]} Rd8 {[%emt 0:09:22]} 1/2-1/2

[Event "BM10, BM12, BM14, BM16 ir BM18 èempionat"]
[Site "Vilnius"]
[Date "2021.06.06"]
[Round "8.13"]
[White "Uckuronis, Aleksandras"]
[Black "Gavenavicius, Karolis"]
[Result "0-1"]
[WhiteElo "1295"]
[BlackElo "1168"]
[PlyCount "86"]
[EventDate "2021.??.??"]
[TimeControl "90+30"]
[WhiteClock "0:26:00"]
[BlackClock "0:09:34"]

1. Nf3 {[%emt 0:00:01]} d5 {[%emt 0:00:12]} 2. d4 {[%emt 0:00:07]} Nf6 {[%emt
0:00:13]} 3. Bf4 {[%emt 0:00:05]} c5 {[%emt 0:00:15]} 4. e3 {[%emt 0:00:24]}
Qb6 {[%emt 0:04:39]} 5. b3 {[%emt 0:03:25]} Nc6 {[%emt 0:01:22]} 6. dxc5 {
[%emt 0:01:36]} Qxc5 {[%emt 0:00:26]} 7. Be2 {[%emt 0:01:53]} Bf5 {[%emt 0:01:
32]} 8. Bd3 {[%emt 0:01:48]} Bxd3 {[%emt 0:02:47]} 9. cxd3 {[%emt 0:01:13]} e6
{[%emt 0:07:58]} 10. O-O {[%emt 0:00:25]} Be7 {[%emt 0:02:05]} 11. d4 {[%emt 0:
01:33]} Qb6 {[%emt 0:04:42]} 12. Nbd2 {[%emt 0:00:23]} O-O {[%emt 0:00:49]} 13.
Ne5 {[%emt 0:01:45]} Nxe5 {[%emt 0:05:10]} 14. dxe5 {[%emt 0:01:09]} Nd7 {
[%emt 0:05:19]} 15. Qg4 {[%emt 0:01:52]} Rfc8 {[%emt 0:09:20]} 16. Nf3 {[%emt
0:03:09]} Rc3 {[%emt 0:07:56]} 17. Bg5 {[%emt 0:02:52]} Bxg5 {[%emt 0:01:24]}
18. Qxg5 {[%emt 0:00:10]} Rac8 {[%emt 0:01:26]} 19. Rfd1 {[%emt 0:02:26]} Qc7 {
[%emt 0:03:18]} 20. h3 {[%emt 0:00:37]} h6 {[%emt 0:07:10]} 21. Qf4 {[%emt 0:
03:24]} a6 {[%emt 0:07:19]} 22. Qd4 {[%emt 0:02:44]} Nb6 {[%emt 0:03:37]} 23.
Nd2 {[%emt 0:02:07]} Qc5 {[%emt 0:02:05]} 24. f4 {[%emt 0:12:19]} Rxe3 {[%emt
0:08:21]} 25. Qxc5 {[%emt 0:01:20]} Rxc5 {[%emt 0:00:09]} 26. Nf3 {[%emt 0:02:
33]} Rec3 {[%emt 0:00:42]} 27. Nd4 {[%emt 0:01:09]} Rc8 {[%emt 0:05:08]} 28.
Kf2 {[%emt 0:00:24]} g6 {[%emt 0:00:14]} 29. Ke2 {[%emt 0:06:04]} Kf8 {[%emt 0:
00:27]} 30. Rh1 {[%emt 0:01:27]} Ke7 {[%emt 0:00:42]} 31. g4 {[%emt 0:00:31]}
Nd7 {[%emt 0:00:30]} 32. h4 {[%emt 0:05:00]} Rg3 {[%emt 0:01:25]} 33. Rag1 {
[%emt 0:03:15]} Rxg1 {[%emt 0:00:10]} 34. Rxg1 {[%emt 0:00:12]} f6 {[%emt 0:00:
38]} 35. exf6+ {[%emt 0:01:02]} Kxf6 {[%emt 0:00:25]} 36. g5+ {[%emt 0:04:49]}
hxg5 {[%emt 0:00:11]} 37. hxg5+ {[%emt 0:01:45]} Ke7 {[%emt 0:00:05]} 38. Rh1 {
[%emt 0:01:23]} Rf8 {[%emt 0:00:17]} 39. Ke3 {[%emt 0:00:41]} e5 {[%emt 0:01:
32]} 40. fxe5 {[%emt 0:03:39]} Nxe5 {[%emt 0:00:06]} 41. Ne2 {[%emt 0:00:35]}
Rf3+ {[%emt 0:00:40]} 42. Kd4 {[%emt 0:00:53]} Kd6 {[%emt 0:00:14]} 43. Rc1 {
[%emt 0:01:05]} Rd3# {[%emt 0:00:11]} 0-1

[Event "BM10, BM12, BM14, BM16 ir BM18 èempionat"]
[Site "Vilnius"]
[Date "2021.06.06"]
[Round "8.14"]
[White "Paknyte, Beatrice"]
[Black "Ratkeviciute, Laurinta"]
[Result "0-1"]
[WhiteElo "1201"]
[BlackElo "1187"]
[PlyCount "108"]
[EventDate "2021.??.??"]
[TimeControl "90+30"]
[WhiteClock "0:07:10"]
[BlackClock "0:54:56"]

1. e4 {[%emt 0:00:01]} e5 {[%emt 0:00:09]} 2. Nf3 {[%emt 0:00:09]} Nc6 {[%emt
0:00:11]} 3. Bc4 {[%emt 0:00:27]} Bc5 {[%emt 0:00:13]} 4. c3 {[%emt 0:00:23]}
Nf6 {[%emt 0:00:14]} 5. d4 {[%emt 0:00:37]} exd4 {[%emt 0:00:14]} 6. cxd4 {
[%emt 0:00:15]} Bb4+ {[%emt 0:00:10]} 7. Nc3 {[%emt 0:00:56]} Nxe4 {[%emt 0:00:
34]} 8. O-O {[%emt 0:00:36]} Bxc3 {[%emt 0:00:13]} 9. d5 {[%emt 0:02:31]} Bf6 {
[%emt 0:00:39]} 10. dxc6 {[%emt 0:00:57]} bxc6 {[%emt 0:00:51]} 11. Re1 {[%emt
0:01:20]} d5 {[%emt 0:01:02]} 12. Bd3 {[%emt 0:01:11]} O-O {[%emt 0:00:56]} 13.
Bxe4 {[%emt 0:02:08]} dxe4 {[%emt 0:00:23]} 14. Qxd8 {[%emt 0:00:48]} Rxd8 {
[%emt 0:00:13]} 15. Rxe4 {[%emt 0:07:36]} Rd1+ {[%emt 0:02:09]} 16. Re1 {[%emt
0:00:09]} Rxe1+ {[%emt 0:00:08]} 17. Nxe1 {[%emt 0:00:08]} Rb8 {[%emt 0:01:51]}
18. a3 {[%emt 0:10:41]} Rb6 {[%emt 0:03:11]} 19. Nd3 {[%emt 0:02:52]} Bf5 {
[%emt 0:01:36]} 20. Nb4 {[%emt 0:03:01]} Bd4 {[%emt 0:06:29]} 21. Bf4 {[%emt 0:
13:05]} Bxb2 {[%emt 0:05:06]} 22. Rd1 {[%emt 0:01:23]} h6 {[%emt 0:01:36]} 23.
Bxc7 {[%emt 0:03:11]} Rb7 {[%emt 0:01:24]} 24. Bf4 {[%emt 0:03:00]} c5 {[%emt
0:01:38]} 25. Na6 {[%emt 0:04:02]} Bxa3 {[%emt 0:01:52]} 26. h3 {[%emt 0:00:49]
} Rb1 {[%emt 0:01:28]} 27. Rxb1 {[%emt 0:01:18]} Bxb1 {[%emt 0:00:11]} 28. Bd2
{[%emt 0:01:39]} Bd3 {[%emt 0:02:39]} 29. Nc7 {[%emt 0:00:55]} Bb4 {[%emt 0:01:
19]} 30. Bc1 {[%emt 0:01:50]} c4 {[%emt 0:01:13]} 31. Nd5 {[%emt 0:01:43]} Bc5
{[%emt 0:00:27]} 32. Nf4 {[%emt 0:01:27]} g5 {[%emt 0:01:13]} 33. Nxd3 {[%emt
0:01:38]} cxd3 {[%emt 0:00:07]} 34. Bd2 {[%emt 0:00:40]} Kf8 {[%emt 0:02:55]}
35. Kf1 {[%emt 0:01:33]} Ke7 {[%emt 0:00:13]} 36. Ke1 {[%emt 0:03:23]} Kd6 {
[%emt 0:01:26]} 37. f4 {[%emt 0:04:26]} f6 {[%emt 0:02:20]} 38. fxg5 {[%emt 0:
00:37]} fxg5 {[%emt 0:00:13]} 39. h4 {[%emt 0:01:14]} gxh4 {[%emt 0:00:37]} 40.
Bxh6 {[%emt 0:00:17]} Bb4+ {[%emt 0:00:14]} 41. Kd1 {[%emt 0:00:49]} a5 {[%emt
0:01:58]} 42. Kc1 {[%emt 0:12:06]} Kd5 {[%emt 0:01:55]} 43. Bg5 {[%emt 0:04:08]
} Be1 {[%emt 0:03:43]} 44. Kd1 {[%emt 0:01:39]} d2 {[%emt 0:00:26]} 45. Bd8 {
[%emt 0:02:38]} a4 {[%emt 0:00:15]} 46. Bxh4 {[%emt 0:00:49]} Bxh4 {[%emt 0:00:
14]} 47. Kxd2 {[%emt 0:00:10]} Kd4 {[%emt 0:00:49]} 48. Kc2 {[%emt 0:00:24]}
Kc4 {[%emt 0:00:14]} 49. Kb2 {[%emt 0:00:36]} Kb4 {[%emt 0:00:38]} 50. Ka2 {
[%emt 0:01:00]} a3 {[%emt 0:00:46]} 51. g4 {[%emt 0:00:31]} Bf6 {[%emt 0:01:06]
} 52. g5 {[%emt 0:00:20]} Bxg5 {[%emt 0:00:08]} 53. Kb1 {[%emt 0:00:08]} Kb3 {
[%emt 0:00:23]} 54. Ka1 {[%emt 0:00:18]} Bf6+ {[%emt 0:00:08]} 0-1

[Event "BM10, BM12, BM14, BM16 ir BM18 èempionat"]
[Site "Vilnius"]
[Date "2021.06.06"]
[Round "8.16"]
[White "Bazilius, Augustinas"]
[Black "Morkunas, Gustas"]
[Result "1/2-1/2"]
[WhiteElo "1683"]
[BlackElo "1704"]
[PlyCount "162"]
[EventDate "2021.??.??"]
[TimeControl "90+30"]
[WhiteClock "0:04:55"]
[BlackClock "0:04:52"]

1. d4 {[%emt 0:00:00]} d5 {[%emt 0:00:10]} 2. c4 {[%emt 0:00:10]} e6 {[%emt 0:
00:11]} 3. Nf3 {[%emt 0:00:05]} a6 {[%emt 0:00:09]} 4. cxd5 {[%emt 0:01:59]}
exd5 {[%emt 0:00:12]} 5. g3 {[%emt 0:00:18]} Nf6 {[%emt 0:02:25]} 6. Bg2 {
[%emt 0:00:51]} c6 {[%emt 0:01:46]} 7. O-O {[%emt 0:00:34]} Bd6 {[%emt 0:00:41]
} 8. Nc3 {[%emt 0:01:18]} O-O {[%emt 0:00:51]} 9. Qc2 {[%emt 0:00:38]} Re8 {
[%emt 0:06:38]} 10. Nd2 {[%emt 0:09:27]} Bg4 {[%emt 0:05:20]} 11. f3 {[%emt 0:
11:54]} Bh5 {[%emt 0:01:04]} 12. e4 {[%emt 0:04:02]} dxe4 {[%emt 0:04:05]} 13.
Ndxe4 {[%emt 0:05:57]} Bg6 {[%emt 0:08:17]} 14. Qb3 {[%emt 0:04:39]} Nxe4 {
[%emt 0:02:29]} 15. Nxe4 {[%emt 0:02:17]} Qc7 {[%emt 0:08:13]} 16. Rd1 {[%emt
0:04:15]} Nd7 {[%emt 0:04:56]} 17. Nxd6 {[%emt 0:01:13]} Qxd6 {[%emt 0:00:09]}
18. Bf4 {[%emt 0:00:09]} Qd5 {[%emt 0:12:05]} 19. Qxb7 {[%emt 0:01:20]} Nf8 {
[%emt 0:06:31]} 20. Qb3 {[%emt 0:05:24]} Qd7 {[%emt 0:05:40]} 21. Rac1 {[%emt
0:14:46]} Ne6 {[%emt 0:03:18]} 22. Be3 {[%emt 0:00:33]} Nc7 {[%emt 0:02:04]}
23. Bf2 {[%emt 0:00:16]} Rab8 {[%emt 0:02:52]} 24. Qc3 {[%emt 0:01:18]} Re6 {
[%emt 0:01:09]} 25. b3 {[%emt 0:02:12]} Nd5 {[%emt 0:01:07]} 26. Qd2 {[%emt 0:
03:04]} Rbe8 {[%emt 0:01:37]} 27. Re1 {[%emt 0:00:29]} Qb7 {[%emt 0:04:22]} 28.
Rxe6 {[%emt 0:01:44]} Rxe6 {[%emt 0:00:32]} 29. Re1 {[%emt 0:00:09]} Qb4 {
[%emt 0:00:54]} 30. Rxe6 {[%emt 0:00:17]} fxe6 {[%emt 0:00:10]} 31. Qxb4 {
[%emt 0:02:32]} Nxb4 {[%emt 0:00:08]} 32. Be1 {[%emt 0:00:24]} Nxa2 {[%emt 0:
02:49]} 33. Bd2 {[%emt 0:00:07]} a5 {[%emt 0:02:37]} 34. f4 {[%emt 0:01:37]}
Nb4 {[%emt 0:03:06]} 35. Bxb4 {[%emt 0:00:13]} axb4 {[%emt 0:00:05]} 36. Bxc6 {
[%emt 0:00:08]} Bc2 {[%emt 0:00:05]} 37. Ba4 {[%emt 0:00:06]} Kf7 {[%emt 0:01:
45]} 38. Kf2 {[%emt 0:01:44]} Ke7 {[%emt 0:00:17]} 39. Ke3 {[%emt 0:00:33]} Kd6
{[%emt 0:00:13]} 40. Kd2 {[%emt 0:00:53]} Bf5 {[%emt 0:00:15]} 41. Bb5 {[%emt
0:00:19]} Kd5 {[%emt 0:01:43]} 42. Ke3 {[%emt 0:00:10]} h6 {[%emt 0:01:55]} 43.
Bc4+ {[%emt 0:00:20]} Kd6 {[%emt 0:00:11]} 44. Kf3 {[%emt 0:02:54]} Bc2 {[%emt
0:00:44]} 45. h3 {[%emt 0:02:26]} Bd1+ {[%emt 0:00:31]} 46. Ke4 {[%emt 0:00:37]
} Bc2+ {[%emt 0:00:37]} 47. Ke3 {[%emt 0:00:08]} Bd1 {[%emt 0:00:25]} 48. g4 {
[%emt 0:01:52]} Bc2 {[%emt 0:00:17]} 49. Kf3 {[%emt 0:00:53]} Bd1+ {[%emt 0:00:
39]} 50. Kf2 {[%emt 0:01:30]} Bc2 {[%emt 0:00:49]} 51. g5 {[%emt 0:01:02]} Bd1
{[%emt 0:00:30]} 52. h4 {[%emt 0:00:56]} Bc2 {[%emt 0:01:17]} 53. Ke2 {[%emt 0:
00:16]} Be4 {[%emt 0:01:11]} 54. Kd2 {[%emt 0:00:57]} Bf3 {[%emt 0:00:38]} 55.
Be2 {[%emt 0:01:18]} Be4 {[%emt 0:01:21]} 56. Bd1 {[%emt 0:00:13]} Kd5 {[%emt
0:00:28]} 57. Ke3 {[%emt 0:00:16]} Bg2 {[%emt 0:00:45]} 58. Bc2 {[%emt 0:00:40]
} Bf1 {[%emt 0:00:37]} 59. f5 {[%emt 0:00:34]} exf5 {[%emt 0:00:28]} 60. Bxf5 {
[%emt 0:00:03]} hxg5 {[%emt 0:00:30]} 61. hxg5 {[%emt 0:00:08]} Bg2 {[%emt 0:
00:45]} 62. Bd3 {[%emt 0:03:25]} Bh3 {[%emt 0:00:36]} 63. Bc4+ {[%emt 0:00:14]}
Kd6 {[%emt 0:00:08]} 64. Kf4 {[%emt 0:00:21]} Bd7 {[%emt 0:00:29]} 65. Bg8 {
[%emt 0:01:05]} Bc8 {[%emt 0:00:51]} 66. Bh7 {[%emt 0:00:32]} Be6 {[%emt 0:00:
17]} 67. Bc2 {[%emt 0:00:21]} Bg8 {[%emt 0:01:13]} 68. Bd1 {[%emt 0:01:56]} Kd5
{[%emt 0:00:42]} 69. Ke3 {[%emt 0:00:30]} Kd6 {[%emt 0:00:44]} 70. Kd3 {[%emt
0:00:29]} Bd5 {[%emt 0:00:21]} 71. Bc2 {[%emt 0:02:06]} Bf7 {[%emt 0:00:18]}
72. Ke3 {[%emt 0:00:25]} Bd5 {[%emt 0:00:43]} 73. Bd1 {[%emt 0:00:40]} Bf7 {
[%emt 0:00:31]} 74. Kd3 {[%emt 0:01:46]} Bd5 {[%emt 0:00:07]} 75. Bc2 {[%emt 0:
00:05]} Bf7 {[%emt 0:00:18]} 76. Kd2 {[%emt 0:00:32]} Bd5 {[%emt 0:00:23]} 77.
g6 {[%emt 0:00:03]} Be6 {[%emt 0:00:32]} 78. Ke3 {[%emt 0:00:18]} Bd5 {[%emt 0:
00:11]} 79. Kf4 {[%emt 0:02:23]} Be6 {[%emt 0:00:14]} 80. Bd1 {[%emt 0:00:30]}
Bd5 {[%emt 0:00:17]} 81. Kf5 {[%emt 0:00:52]} Be6+ {[%emt 0:00:10]} 1/2-1/2

[Event "BM10, BM12, BM14, BM16 ir BM18 èempionat"]
[Site "Vilnius"]
[Date "2021.06.06"]
[Round "8.21"]
[White "Norkeliunas, Sarunas"]
[Black "Kavalnis, Rytis"]
[Result "1-0"]
[WhiteElo "1168"]
[BlackElo "1347"]
[PlyCount "129"]
[EventDate "2021.??.??"]
[TimeControl "90+30"]
[WhiteClock "1:04:38"]
[BlackClock "0:46:18"]

1. e4 {[%emt 0:00:02]} e5 {[%emt 0:00:05]} 2. Nf3 {[%emt 0:00:11]} Nc6 {[%emt
0:00:06]} 3. Bb5 {[%emt 0:00:07]} a6 {[%emt 0:00:06]} 4. Bxc6 {[%emt 0:00:26]}
dxc6 {[%emt 0:00:09]} 5. d4 {[%emt 0:00:45]} exd4 {[%emt 0:02:25]} 6. Qxd4 {
[%emt 0:00:22]} Qxd4 {[%emt 0:00:42]} 7. Nxd4 {[%emt 0:00:09]} Bc5 {[%emt 0:01:
08]} 8. Nb3 {[%emt 0:01:09]} Bb6 {[%emt 0:00:35]} 9. Nc3 {[%emt 0:00:15]} Be6 {
[%emt 0:00:17]} 10. Na4 {[%emt 0:03:13]} Bxb3 {[%emt 0:00:48]} 11. Nxb6 {[%emt
0:01:57]} cxb6 {[%emt 0:00:08]} 12. axb3 {[%emt 0:00:50]} Nf6 {[%emt 0:00:26]}
13. f3 {[%emt 0:00:50]} O-O {[%emt 0:00:45]} 14. Bg5 {[%emt 0:01:45]} Rfe8 {
[%emt 0:01:03]} 15. Bxf6 {[%emt 0:01:01]} gxf6 {[%emt 0:00:10]} 16. Kf2 {[%emt
0:01:53]} Rad8 {[%emt 0:00:18]} 17. Rad1 {[%emt 0:01:08]} Kg7 {[%emt 0:00:34]}
18. Rxd8 {[%emt 0:00:36]} Rxd8 {[%emt 0:00:13]} 19. Ke2 {[%emt 0:00:17]} Kg6 {
[%emt 0:00:17]} 20. Rd1 {[%emt 0:01:02]} Rxd1 {[%emt 0:00:10]} 21. Kxd1 {[%emt
0:00:08]} f5 {[%emt 0:00:10]} 22. exf5+ {[%emt 0:01:55]} Kxf5 {[%emt 0:00:08]}
23. Ke2 {[%emt 0:00:53]} Ke5 {[%emt 0:00:30]} 24. Ke3 {[%emt 0:00:56]} f5 {
[%emt 0:02:46]} 25. f4+ {[%emt 0:00:45]} Kd5 {[%emt 0:00:09]} 26. h3 {[%emt 0:
00:45]} h5 {[%emt 0:01:53]} 27. Kf3 {[%emt 0:00:15]} Ke6 {[%emt 0:00:19]} 28.
Kg3 {[%emt 0:00:53]} Kf6 {[%emt 0:00:15]} 29. Kh4 {[%emt 0:01:01]} Kg6 30. g4 {
[%emt 0:00:40]} hxg4 {[%emt 0:01:32]} 31. hxg4 {[%emt 0:03:13]} fxg4 {[%emt 0:
01:20]} 32. Kxg4 {[%emt 0:00:42]} b5 {[%emt 0:06:24]} 33. b4 {[%emt 0:04:12]}
b6 {[%emt 0:01:05]} 34. f5+ {[%emt 0:00:59]} Kf6 {[%emt 0:00:05]} 35. Kf4 {
[%emt 0:00:07]} a5 {[%emt 0:04:03]} 36. c3 {[%emt 0:06:32]} axb4 {[%emt 0:06:
29]} 37. cxb4 {[%emt 0:00:14]} c5 {[%emt 0:00:10]} 38. Ke4 {[%emt 0:00:57]}
cxb4 {[%emt 0:08:07]} 39. b3 {[%emt 0:00:53]} Ke7 {[%emt 0:00:18]} 40. Kd5 {
[%emt 0:02:33]} Kf6 {[%emt 0:00:16]} 41. Kc6 {[%emt 0:00:43]} Kxf5 {[%emt 0:00:
11]} 42. Kxb6 {[%emt 0:00:10]} Ke6 {[%emt 0:00:38]} 43. Kxb5 {[%emt 0:00:12]}
Kd7 {[%emt 0:00:13]} 44. Kxb4 {[%emt 0:00:11]} Kc6 {[%emt 0:00:16]} 45. Ka5 {
[%emt 0:01:21]} Kb7 {[%emt 0:00:14]} 46. Kb5 {[%emt 0:00:42]} Ka7 {[%emt 0:15:
47]} 47. Kc6 {[%emt 0:00:24]} Kb8 {[%emt 0:01:04]} 48. b4 {[%emt 0:02:50]} Kc8
{[%emt 0:02:13]} 49. Kb6 {[%emt 0:05:19]} Kb8 {[%emt 0:00:52]} 50. b5 {[%emt 0:
00:36]} Kc8 {[%emt 0:00:08]} 51. Ka7 {[%emt 0:00:07]} Kd7 {[%emt 0:00:06]} 52.
b6 {[%emt 0:00:08]} Kd6 {[%emt 0:00:20]} 53. b7 {[%emt 0:00:06]} Kd5 {[%emt 0:
00:18]} 54. b8=Q {[%emt 0:00:07]} Ke4 {[%emt 0:00:07]} 55. Qd6 {[%emt 0:00:11]}
Kf5 {[%emt 0:00:09]} 56. Qe7 {[%emt 0:00:09]} Kf4 {[%emt 0:00:19]} 57. Kb6 {
[%emt 0:00:07]} Kf5 {[%emt 0:00:16]} 58. Kc5 {[%emt 0:00:12]} Kf4 {[%emt 0:00:
11]} 59. Kd4 {[%emt 0:00:08]} Kf5 {[%emt 0:00:09]} 60. Qe5+ {[%emt 0:00:16]}
Kg4 {[%emt 0:00:15]} 61. Qf6 {[%emt 0:00:11]} Kg3 {[%emt 0:00:38]} 62. Ke4 {
[%emt 0:00:20]} Kg2 {[%emt 0:00:41]} 63. Kf4 {[%emt 0:00:22]} Kh3 {[%emt 0:00:
22]} 64. Qb2 {[%emt 0:00:13]} Kh4 {[%emt 0:01:28]} 65. Qh2# 1-0

[Event "BM10, BM12, BM14, BM16 ir BM18 èempionat"]
[Site "Vilnius"]
[Date "2021.06.06"]
[Round "8.22"]
[White "Kraucenka, Justas"]
[Black "Dijokas, Jokubas"]
[Result "0-1"]
[WhiteElo "1101"]
[BlackElo "1209"]
[PlyCount "70"]
[EventDate "2021.??.??"]
[TimeControl "90+30"]
[WhiteClock "0:37:59"]
[BlackClock "1:14:17"]

1. e4 {[%emt 0:00:00]} c6 {[%emt 0:00:08]} 2. d4 {[%emt 0:00:08]} d5 {[%emt 0:
00:04]} 3. exd5 {[%emt 0:00:09]} cxd5 {[%emt 0:00:06]} 4. Nf3 {[%emt 0:00:42]}
Nc6 {[%emt 0:00:38]} 5. c3 {[%emt 0:01:17]} Qc7 {[%emt 0:00:49]} 6. Bd3 {[%emt
0:02:15]} Bg4 {[%emt 0:00:29]} 7. h3 {[%emt 0:03:05]} Bh5 {[%emt 0:00:16]} 8.
Bg5 {[%emt 0:01:49]} e6 {[%emt 0:01:00]} 9. Nbd2 {[%emt 0:01:36]} Bd6 {[%emt 0:
01:03]} 10. Rc1 {[%emt 0:02:02]} Bf4 {[%emt 0:02:15]} 11. Bxf4 {[%emt 0:02:31]}
Qxf4 {[%emt 0:00:10]} 12. Qb3 {[%emt 0:04:59]} Rb8 {[%emt 0:02:48]} 13. Bb5 {
[%emt 0:02:02]} Nge7 {[%emt 0:02:00]} 14. Ne5 {[%emt 0:04:12]} O-O {[%emt 0:03:
21]} 15. Nd7 {[%emt 0:02:44]} Rbc8 {[%emt 0:03:47]} 16. Bxc6 {[%emt 0:02:35]}
Nxc6 {[%emt 0:01:25]} 17. Rc2 {[%emt 0:07:25]} Rfd8 {[%emt 0:01:42]} 18. Nc5 {
[%emt 0:06:35]} b6 {[%emt 0:01:15]} 19. Nd3 {[%emt 0:01:52]} Qf5 {[%emt 0:01:
57]} 20. c4 {[%emt 0:04:43]} Nxd4 {[%emt 0:00:59]} 21. g4 {[%emt 0:02:08]} Qf6
{[%emt 0:01:38]} 22. Qc3 {[%emt 0:02:31]} Nxc2+ {[%emt 0:00:31]} 23. Qxc2 {
[%emt 0:00:16]} Bg6 {[%emt 0:00:14]} 24. f3 {[%emt 0:07:11]} dxc4 {[%emt 0:00:
32]} 25. Ne4 {[%emt 0:00:16]} Qxf3 {[%emt 0:01:53]} 26. Ndf2 {[%emt 0:01:20]}
Bxe4 {[%emt 0:00:44]} 27. Qxe4 {[%emt 0:00:25]} Rd1+ {[%emt 0:00:28]} 28. Nxd1
{[%emt 0:00:44]} Qxe4+ {[%emt 0:00:05]} 29. Kd2 {[%emt 0:00:19]} Rd8+ {[%emt 0:
00:24]} 30. Kc1 {[%emt 0:00:25]} Qxh1 {[%emt 0:00:10]} 31. Kc2 {[%emt 0:00:19]}
Qxd1+ {[%emt 0:00:16]} 32. Kc3 {[%emt 0:00:05]} Qc1+ {[%emt 0:00:12]} 33. Kb4 {
[%emt 0:00:18]} Qxb2+ {[%emt 0:00:20]} 34. Ka4 {[%emt 0:00:25]} Rd5 {[%emt 0:
00:16]} 35. g5 {[%emt 0:00:13]} Ra5# {[%emt 0:00:11]} 0-1